bitfinex/quotes_ETHUSD_20230119
["timestamp","ask_amount","ask_price","bid_price","bid_amount"]
[1674135040231,4.643,1522.8,1522.5,0.4927]
[1674135040479,5.1139,1522.8,1522.4,0.066]
[1674135040709,8.47164759,1522.8,1522.3,1.82557274]
[1674135041605,5.1799,1522.8,1522.3,1.82557274]
[1674135041811,4.709,1522.8,1522.3,2.05741001]
[1674135042140,4.643,1522.8,1522.4,1.3801884]
[1674135042348,2.20991374,1522.8,1522.5,14.01917478]
[1674135042578,2.20991374,1522.8,1522.6,2.28067892]
[1674135042767,2.20991374,1522.8,1522.6,8.84829892]
[1674135042978,2.20991374,1522.8,1522.6,8.91429892]
[1674135043190,0.00091374,1522.8,1522.7,0.4927]
[1674135043494,0.00091374,1522.8,1522.7,8.37811548]
[1674135043740,0.15881112,1523.4,1522.9,6.56609]
[1674135043955,0.15881112,1523.4,1522.9,7.46773358]
[1674135044118,3.78424759,1523.3,1522.9,0.066]
[1674135044324,3.29174759,1523.2,1522.8,0.00108626]
[1674135044538,3.78424759,1523.1,1522.8,0.00108626]
[1674135045434,0.066,1523.2,1522.8,7.42077359]
[1674135045747,3.78424759,1523.1,1522.8,0.06708626]
[1674135045965,9.85789759,1523.0,1522.8,0.00108626]
[1674135046117,3.78434759,1522.9,1522.3,1.82557274]
[1674135046325,4.77013735,1522.9,1522.3,1.82557274]
[1674135046588,3.29174759,1522.8,1522.3,1.82557274]
[1674135046778,3.78444759,1522.7,1522.3,1.82557274]
[1674135046992,3.52174759,1522.6,1522.3,1.82557274]
[1674135047206,0.4927,1522.5,1522.3,1.82557274]
[1674135047371,2.47,1522.5,1522.3,1.82557274]
[1674135047585,2.76627,1522.5,1522.3,1.82557274]
[1674135047795,3.29174759,1522.4,1522.3,1.82557274]
[1674135048060,0.4928,1522.4,1522.3,1.82557274]
[1674135048802,1.705,1522.7,1522.3,1.82557274]
[1674135049111,3.76814759,1522.6,1522.3,1.82557274]
[1674135049338,0.4764,1522.6,1522.3,1.82557274]
[1674135050376,3.76814759,1522.6,1522.3,1.82557274]
[1674135050531,0.4764,1522.6,1522.3,1.82557274]
[1674135050742,0.5423,1522.8,1522.3,2.72158925]
[1674135050950,0.69423,1522.8,1522.3,15.86274611]
[1674135051204,0.69423,1522.8,1522.3,15.92874611]
[1674135051579,0.5423,1523.0,1522.4,0.8873884]
[1674135051788,0.4763,1523.0,1522.5,7.4457448]
[1674135052150,0.4763,1523.0,1522.5,13.20534643]
[1674135052475,0.473,1523.2,1522.7,6.56693]
[1674135052789,0.473,1523.2,1522.7,14.05634333]
[1674135052943,3.29174759,1523.2,1522.7,0.069246]
[1674135053153,0.32917476,1523.1,1522.6,6.63335]
[1674135053815,3.76484759,1523.0,1522.6,0.066]
[1674135054030,3.29174759,1522.9,1522.4,0.066]
[1674135054267,3.66823235,1522.9,1522.3,8.46029274]
[1674135054430,3.66823235,1522.9,1522.3,8.95309274]
[1674135055639,3.76484759,1522.8,1522.3,1.89157274]
[1674135055840,3.66823235,1522.7,1522.3,1.82557274]
[1674135055991,0.4732,1522.6,1522.3,1.82557274]
[1674135056200,4.14143235,1522.7,1522.3,1.82557274]
[1674135056461,0.41414323,1522.6,1522.3,1.82557274]
[1674135057417,3.76494759,1522.5,1522.3,1.82557274]
[1674135057757,3.52174759,1522.4,1522.3,1.82557274]
[1674135058091,20.13198759,1522.4,1521.9,0.066]
[1674135058300,5.77804635,1522.3,1521.8,0.9194203]
[1674135058517,3.29174759,1522.2,1521.8,0.9194203]
[1674135059767,2.07919876,1522.3,1521.8,14.0616503]
[1674135059878,2.07919876,1522.3,1521.8,16.30566924]
[1674135059879,0.064,1522.3,1521.8,16.30566924]
[1674135060087,3.29174759,1522.3,1521.8,9.79850924]
[1674135060303,3.7691,1522.4,1521.8,7.5564903]
[1674135060528,0.4731,1522.4,1522.0,6.57008]
[1674135060738,0.4731,1522.4,1522.0,8.06424067]
[1674135060984,3.4731,1522.5,1522.0,8.06424067]
[1674135061146,0.4731,1522.5,1522.1,0.4929]
[1674135061355,0.20265899,1522.6,1522.2,1.0]
[1674135061805,3.29174759,1522.5,1522.1,0.066]
[1674135061999,0.32917476,1522.4,1522.0,6.63608]
[1674135062204,0.32917476,1522.4,1522.0,6.581317]
[1674135062996,3.62092235,1522.4,1522.0,0.066]
[1674135063210,0.26865899,1522.6,1522.0,13.14054]
[1674135063211,0.066,1522.5,1522.0,13.14054]
[1674135063524,3.20265899,1522.6,1522.0,13.14054]
[1674135063525,3.49440658,1522.6,1522.0,13.20654]
[1674135063673,0.34944066,1522.5,1522.0,13.20654]
[1674135063884,3.29174759,1522.4,1522.0,0.066]
[1674135064204,3.29174759,1522.4,1521.9,13.89540365]
[1674135064461,0.333,1522.3,1522.0,1.1411308]
[1674135064631,0.333,1522.3,1521.9,7.32477365]
[1674135064841,0.333,1522.3,1522.0,1.14112295]
[1674135065089,0.333,1522.3,1522.0,14.77450295]
[1674135065302,3.29174759,1522.2,1522.0,0.066]
[1674135065526,3.62092235,1522.1,1521.8,1.60780395]
[1674135065682,0.066,1522.2,1521.9,1.14119789]
[1674135065907,0.333,1522.3,1521.9,0.68838365]
[1674135066084,0.333,1522.3,1521.9,9.43528316]
[1674135066300,0.333,1522.3,1522.0,1.14110778]
[1674135066511,0.23,1522.2,1521.8,0.9854203]
[1674135066800,0.23,1522.2,1521.8,0.9194203]
[1674135066932,3.29174759,1522.1,1521.8,0.9194203]
[1674135067140,3.52174759,1522.0,1521.8,0.9194203]
[1674135067398,3.29174759,1521.9,1521.8,0.9194203]
[1674135067937,27.59920759,1521.9,1521.6,0.03706172]
[1674135068094,6.936,1521.7,1521.6,6.172e-05]
[1674135068303,23.07251759,1521.7,1521.6,6.172e-05]
[1674135068665,23.66692759,1521.7,1521.6,6.172e-05]
[1674135069030,26.66692759,1521.7,1521.6,6.172e-05]
[1674135069299,30.10190489,1521.7,1521.6,6.172e-05]
[1674135069514,31.65890489,1521.7,1521.6,6.172e-05]
[1674135070036,24.06597246,1521.7,1521.6,6.172e-05]
[1674135070242,31.00197246,1521.7,1521.6,6.172e-05]
[1674135070397,31.65890489,1521.7,1521.6,6.172e-05]
[1674135070819,17.49438246,1521.7,1521.6,6.172e-05]
[1674135071398,31.00197246,1521.7,1521.6,6.172e-05]
[1674135071613,39.65890489,1521.7,1521.6,6.172e-05]
[1674135071828,7.936,1521.6,1521.5,0.05960573]
[1674135072046,29.03043125,1521.6,1521.5,0.05960573]
[1674135072183,29.68736368,1521.6,1521.4,0.60142]
[1674135072397,6.936,1521.4,1521.2,0.06375124]
[1674135072643,20.13198759,1521.3,1521.2,0.06375124]
[1674135072830,19.20996585,1521.3,1521.2,5.124e-05]
[1674135073053,26.14596585,1521.3,1521.2,5.124e-05]
[1674135073395,28.35689828,1521.3,1521.2,5.124e-05]
[1674135074021,29.04355421,1521.3,1521.2,5.124e-05]
[1674135074190,28.35689828,1521.3,1521.2,5.124e-05]
[1674135075082,33.35689828,1521.3,1521.2,5.124e-05]
[1674135076175,33.35689828,1521.3,1521.0,0.06375124]
[1674135076393,11.78474759,1521.1,1521.0,0.06375124]
[1674135076591,34.80328759,1521.1,1520.8,0.05957594]
[1674135076802,13.45774759,1521.0,1520.8,0.05957594]
[1674135077070,16.80279759,1520.9,1520.8,0.05957594]
[1674135077227,19.76615535,1520.9,1520.8,0.05957594]
[1674135077814,29.34120535,1520.9,1520.8,0.05957594]
[1674135078034,29.34120535,1520.9,1519.9,6.3064287]
[1674135078035,29.99813778,1520.9,1519.9,6.3064287]
[1674135078168,29.99813778,1520.9,1519.9,0.066]
[1674135078169,10.22774759,1520.6,1519.9,0.066]
[1674135078377,10.22774759,1520.6,1519.8,6.64569]
[1674135078378,3.29174759,1520.5,1519.8,6.64569]
[1674135078701,3.52174759,1520.4,1519.9,1.0]
[1674135078908,3.29174759,1520.3,1520.0,0.4935]
[1674135079164,1.46396437,1520.2,1519.9,0.4936]
[1674135079490,1.46396437,1520.2,1519.8,0.4936]
[1674135079799,1.46396437,1520.2,1519.8,0.64296]
[1674135080182,1.46396437,1520.2,1519.8,0.4936]
[1674135080428,13.80926,1520.4,1519.8,0.4936]
[1674135080429,3.29174759,1520.1,1519.8,0.4936]
[1674135080753,10.002,1520.3,1519.8,0.4936]
[1674135080933,10.002,1520.3,1519.6,7.71605975]
[1674135080934,3.52174759,1520.2,1519.7,0.4936]
[1674135081131,4.52194759,1520.2,1519.7,0.4936]
[1674135081327,4.52194759,1520.2,1519.7,1.4936]
[1674135081729,4.52194759,1520.2,1519.7,0.4936]
[1674135081862,3.29174759,1520.1,1519.7,0.4936]
[1674135082071,3.74394235,1520.1,1519.7,0.4936]
[1674135082322,3.74394235,1520.1,1519.6,0.06941975]
[1674135082323,3.29174759,1519.9,1519.6,0.06941975]
[1674135082648,13.51624,1519.7,1519.6,0.06941975]
[1674135082788,23.45422759,1519.7,1519.6,0.06941975]
[1674135082999,10.16798759,1519.7,1519.6,0.06941975]
[1674135083215,6.58774759,1519.7,1519.6,0.06941975]
[1674135083443,13.16798759,1519.7,1519.6,0.06941975]
[1674135083657,13.16798759,1519.7,1519.1,1.0]
[1674135083658,29.40197235,1519.7,1519.1,1.0]
[1674135083896,29.40197235,1519.7,1518.8,1.1739087]
[1674135083897,3.29174759,1519.4,1518.8,1.1739087]
[1674135084108,3.62092235,1519.3,1518.8,1.1079087]
[1674135084275,3.29174759,1519.2,1519.0,1.0]
[1674135084680,3.29174759,1519.1,1518.9,0.4939]
[1674135085002,0.066,1519.3,1518.9,0.4939]
[1674135085332,0.066,1519.4,1519.0,1.0]
[1674135085697,3.29174759,1519.4,1519.0,1.0]
[1674135085884,0.066,1519.5,1519.1,0.4938]
[1674135086114,3.29174759,1519.6,1519.1,7.390445]
[1674135086285,3.29174759,1519.6,1519.2,1.0]
[1674135087647,0.066,1519.7,1519.2,4.29174759]
[1674135087856,0.066,1520.0,1519.4,13.16294]
[1674135088063,0.066,1520.2,1519.5,3.29174759]
[1674135088270,3.29174759,1520.1,1519.6,0.4937]
[1674135088517,0.066,1520.3,1519.6,0.4937]
[1674135088518,3.29174759,1520.0,1519.6,1.4937]
[1674135088678,3.29174759,1519.9,1519.5,0.066]
[1674135088893,13.51455,1520.1,1519.3,0.4938]
[1674135088894,3.29174759,1519.8,1519.3,0.4938]
[1674135089283,0.066,1519.9,1519.4,1.0]
[1674135089413,4.351455,1520.0,1519.4,1.0]
[1674135089623,3.29174759,1519.9,1519.4,7.58154]
[1674135089856,3.066,1520.0,1519.4,14.22908]
[1674135090200,1.665,1520.1,1519.4,14.22908]
[1674135090201,0.066,1520.1,1519.6,1.0]
[1674135090418,1.523338,1520.3,1519.6,1.0]
[1674135090731,3.45308139,1520.2,1519.7,6.58011]
[1674135091042,8.29749,1520.4,1519.7,13.22635]
[1674135091043,3.85114759,1520.3,1519.7,13.22635]
[1674135091193,1.654,1520.4,1519.8,1.0]
[1674135091194,0.5593,1520.4,1519.8,1.0]
[1674135091409,8.32052,1520.6,1519.9,6.57919]
[1674135091410,0.4933,1520.5,1519.9,6.57919]
[1674135091725,3.29174759,1520.4,1519.9,0.066]
[1674135091936,16.94063759,1520.3,1519.8,0.066]
[1674135092197,16.94063759,1520.3,1519.5,8.07466]
[1674135092198,4.98581135,1520.2,1519.5,8.07466]
[1674135092378,0.4934,1520.1,1519.6,16.45306759]
[1674135092728,0.066,1520.5,1519.7,6.78534759]
[1674135092944,3.29174759,1520.4,1519.9,6.5792]
[1674135093089,3.78514759,1520.3,1519.9,0.066]
[1674135093301,3.29174759,1520.2,1519.7,0.4936]
[1674135093562,0.32917476,1520.1,1519.6,13.721]
[1674135094469,3.29174759,1520.0,1519.6,0.066]
[1674135094684,3.29174759,1519.9,1519.5,1.0]
[1674135094910,3.64392235,1519.9,1519.5,1.0]
[1674135095128,3.64392235,1519.9,1519.5,7.58107]
[1674135095129,0.35217476,1519.9,1519.5,7.58107]
[1674135095460,0.23,1520.0,1519.5,14.22818]
[1674135095627,0.82257476,1520.1,1519.6,0.4937]
[1674135095847,0.08225748,1520.0,1519.5,14.72188]
[1674135096404,0.08225748,1520.0,1519.5,0.5597]
[1674135096405,3.29174759,1519.9,1519.5,0.5597]
[1674135096717,3.29174759,1519.9,1519.3,7.14153]
[1674135096958,0.99530151,1519.9,1519.5,13.162]
[1674135097139,0.08225748,1520.0,1519.6,1.0]
[1674135097305,1.738,1520.2,1519.7,13.16004]
[1674135097306,0.066,1520.2,1519.7,13.16004]
[1674135097516,0.4933,1520.4,1519.7,13.32604]
[1674135097781,3.78504759,1520.4,1519.9,6.57936]
[1674135097941,3.78504759,1520.4,1519.9,6.64536]
[1674135098149,4.82785635,1520.4,1520.0,1.0]
[1674135098357,3.29174759,1520.4,1520.0,1.0]
[1674135098563,0.5593,1520.5,1520.0,7.5789]
[1674135098791,0.5593,1520.6,1520.0,7.6449]
[1674135099047,6.78504759,1520.6,1520.0,6.6449]
[1674135099205,0.5593,1520.6,1520.0,6.6449]
[1674135099414,17.83728243,1520.8,1520.1,0.66449]
[1674135099415,0.4932,1520.7,1520.1,0.66449]
[1674135099623,0.066,1520.8,1520.2,13.15581]
[1674135099864,0.066,1520.9,1520.3,0.4934]
[1674135100085,0.066,1521.1,1520.4,16.44579759]
[1674135100415,0.4931,1521.2,1520.5,0.4934]
[1674135100733,0.4931,1521.2,1520.7,13.15178]
[1674135100893,5.5591,1521.3,1520.7,17.00282759]
[1674135101088,5.5591,1521.3,1520.8,6.29174759]
[1674135101089,0.066,1521.3,1520.8,6.29174759]
[1674135101298,0.14976025,1521.7,1520.9,23.50943759]
[1674135101510,0.14976025,1521.7,1521.0,6.29174759]
[1674135101780,0.64276025,1521.7,1521.2,6.57371]
[1674135101943,0.14976025,1521.7,1521.2,0.066]
[1674135102175,3.29174759,1521.6,1521.1,0.4932]
[1674135102395,3.29174759,1521.5,1521.1,0.4932]
[1674135102581,0.32917476,1521.4,1521.1,0.4932]
[1674135102932,0.066,1521.6,1521.1,13.6413]
[1674135103159,1.24483628,1521.7,1521.1,16.99904759]
[1674135103368,0.14976025,1521.7,1521.2,3.29174759]
[1674135103507,0.14976025,1521.7,1521.4,13.1456]
[1674135103720,0.14976025,1521.7,1521.4,6.6388]
[1674135103924,0.14976025,1521.7,1521.4,0.066]
[1674135104191,0.14976025,1521.7,1521.4,6.57285]
[1674135104505,0.14976025,1521.7,1521.4,0.066]
[1674135104723,0.14976025,1521.7,1521.3,10.13227]
[1674135105305,0.14976025,1521.7,1521.4,3.29174759]
[1674135105521,0.14976025,1521.7,1521.5,6.57246]
[1674135105850,0.14976025,1521.7,1521.5,9.93020759]
[1674135106170,0.14976025,1521.7,1521.5,6.63846]
[1674135106380,0.14976025,1521.7,1521.5,7.13146]
[1674135106615,0.14976025,1521.7,1521.5,6.63846]
[1674135106988,0.14976025,1521.7,1521.5,7.63846]
[1674135107248,0.14976025,1521.7,1521.5,9.108893]
[1674135107832,0.14976025,1521.7,1521.6,3.29174759]
[1674135108141,0.14976025,1521.7,1521.6,7.57202]
[1674135108275,0.14976025,1521.7,1521.6,0.066]
[1674135108530,0.14976025,1521.7,1521.4,7.13187]
[1674135109616,0.14976025,1521.7,1521.4,10.42361759]
[1674135109829,0.14976025,1521.7,1521.5,1.04236176]
[1674135110096,0.14976025,1521.7,1521.6,7.57202]
[1674135110413,0.14976025,1521.7,1521.6,7.63802]
[1674135110777,0.14976025,1521.7,1521.6,0.066]
[1674135110991,1.20776025,1521.7,1521.5,0.066]
[1674135111232,1.35933628,1521.7,1521.3,9.63917]
[1674135111441,4.65108387,1521.7,1521.3,0.066]
[1674135111614,5.14408387,1521.7,1521.1,6.63984]
[1674135111836,0.51440839,1521.6,1521.1,0.066]
[1674135112215,0.51440839,1521.6,1521.0,7.13367]
[1674135112216,3.80615598,1521.6,1521.0,7.13367]
[1674135112521,0.51440839,1521.6,1521.0,7.13367]
[1674135112674,1.85233628,1521.7,1521.0,18.00003759]
[1674135112883,5.14408387,1521.7,1521.0,14.70829]
[1674135113152,3.29174759,1521.6,1521.0,13.70829]
[1674135113301,3.29174759,1521.6,1521.0,0.066]
[1674135113302,3.78474759,1521.5,1521.0,0.066]
[1674135113521,0.37847476,1521.4,1520.9,7.13391]
[1674135114693,0.37847476,1521.4,1520.9,17.00070759]
[1674135114894,0.493,1521.6,1520.9,17.00070759]
[1674135115196,0.493,1521.6,1521.1,6.574]
[1674135115402,0.79433628,1521.7,1521.1,9.93174759]
[1674135115639,0.79433628,1521.7,1521.2,3.29174759]
[1674135115640,0.14976025,1521.7,1521.2,3.29174759]
[1674135115996,0.14976025,1521.7,1521.3,13.1462]
[1674135116312,0.14976025,1521.7,1521.3,6.6391]
[1674135116617,0.14976025,1521.7,1521.3,7.6391]
[1674135116791,0.14976025,1521.7,1521.3,18.92541959]
[1674135116987,0.14976025,1521.7,1521.3,15.633672]
[1674135118147,0.14976025,1521.7,1521.3,14.633672]
[1674135118359,0.14976025,1521.7,1521.3,13.21242]
[1674135119454,0.14976025,1521.7,1521.3,13.2084445]
[1674135119628,0.14976025,1521.7,1521.4,4.29174759]
[1674135119839,0.14976025,1521.7,1521.5,13.14492]
[1674135120771,0.14976025,1521.7,1521.5,13.21092]
[1674135121416,0.14976025,1521.7,1521.5,0.066]
[1674135121656,0.14976025,1521.7,1521.4,0.066]
[1674135121870,0.14976025,1521.7,1521.3,0.066]
[1674135122055,0.14976025,1521.7,1521.2,6.57345]
[1674135122056,3.29174759,1521.6,1521.2,0.066]
[1674135122281,3.85092235,1521.5,1520.9,13.21552]
[1674135122609,3.52174759,1521.5,1520.9,13.21552]
[1674135122827,4.01474759,1521.5,1520.9,13.21552]
[1674135123481,10.58724759,1521.5,1520.9,13.21552]
[1674135123694,3.29174759,1521.4,1520.9,0.066]
[1674135123908,3.29174759,1521.4,1520.8,0.066]
[1674135123909,3.29174759,1521.3,1520.8,0.066]
[1674135124126,16.93264759,1521.2,1520.6,0.4933]
[1674135124428,4.98501235,1521.1,1520.5,0.5594]
[1674135124639,3.52174759,1521.0,1520.4,7.13637]
[1674135124855,8.33381476,1521.1,1520.4,13.71358]
[1674135125184,8.33381476,1521.1,1520.5,4.00538459]
[1674135125185,0.066,1521.1,1520.5,4.00538459]
[1674135125359,0.4931,1521.3,1520.6,23.01974759]
[1674135125531,9.63457235,1521.4,1520.7,3.29174759]
[1674135125740,9.63457235,1521.4,1520.9,13.15006]
[1674135125741,1.61782476,1521.4,1520.9,13.15006]
[1674135125966,0.559,1521.5,1520.9,13.21606]
[1674135126202,0.493,1521.6,1521.0,3.29174759]
[1674135126535,0.14976025,1521.7,1521.1,16.43976759]
[1674135126689,4.29263187,1521.7,1521.1,13.21402]
[1674135126897,3.78474759,1521.6,1521.1,0.066]
[1674135127109,0.37847476,1521.5,1521.0,7.13372]
[1674135127378,0.493,1521.6,1521.0,6.64052]
[1674135127530,3.78474759,1521.6,1521.0,13.21504]
[1674135127736,3.29174759,1521.5,1521.0,6.64052]
[1674135127952,3.29174759,1521.4,1521.0,0.066]
[1674135128207,10.35776759,1521.4,1520.9,0.066]
[1674135128476,0.5591,1521.4,1521.0,13.14915]
[1674135128838,0.493,1521.5,1521.0,13.21515]
[1674135129171,0.066,1521.6,1521.0,15.78335]
[1674135129336,0.066,1521.6,1521.0,13.70835]
[1674135129337,0.10668843,1521.6,1521.0,13.70835]
[1674135129547,3.78474759,1521.5,1521.0,0.5592]
[1674135129752,3.78474759,1521.5,1521.0,1.0]
[1674135129753,3.29174759,1521.4,1521.0,1.0]
[1674135129966,0.066,1521.5,1521.0,14.14913]
[1674135130216,7.17170843,1521.6,1521.0,19.63518359]
[1674135130217,0.066,1521.6,1521.0,19.63518359]
[1674135130432,4.00088428,1521.7,1521.0,16.343436]
[1674135130576,3.29174759,1521.6,1521.1,0.4932]
[1674135130786,9.86394759,1521.6,1521.1,0.4932]
[1674135131054,9.92994759,1521.6,1521.1,0.4932]
[1674135131378,3.29174759,1521.5,1521.0,0.066]
[1674135131589,3.29174759,1521.5,1520.9,9.57485]
[1674135131590,3.29174759,1521.4,1520.9,9.57485]
[1674135131755,1.05899476,1521.5,1521.0,1.4932]
[1674135131977,0.066,1521.6,1521.0,21.78002759]
[1674135132314,0.64276025,1521.7,1521.2,6.57342]
[1674135132536,0.64276025,1521.7,1521.2,8.25414]
[1674135132683,0.14976025,1521.7,1521.2,7.63942]
[1674135133946,0.14976025,1521.7,1521.3,3.29174759]
[1674135134155,0.14976025,1521.7,1521.4,13.14568]
[1674135134452,0.14976025,1521.7,1521.4,23.07630759]
[1674135134782,0.14976025,1521.7,1521.6,2.075]
[1674135134998,0.14976025,1521.7,1521.6,25.63960759]
[1674135135260,0.14976025,1521.7,1521.6,22.41386]
[1674135135578,6.025e-05,1521.7,1521.6,25.70560759]
[1674135135730,0.11861487,1522.0,1521.7,0.149]
[1674135135942,0.11861487,1522.0,1521.8,5.85964759]
[1674135136149,0.86829278,1522.5,1521.9,36.07466759]
[1674135136150,0.11861487,1522.5,1521.9,36.07466759]
[1674135136425,0.11861487,1522.5,1522.0,5.85564759]
[1674135136573,0.11861487,1522.5,1522.2,2.075]
[1674135136946,3.41036246,1522.5,1522.1,0.066]
[1674135137104,0.11861487,1522.5,1522.2,13.63157]
[1674135137311,0.11861487,1522.5,1522.2,16.98931759]
[1674135137564,0.11861487,1522.5,1522.2,16.49651759]
[1674135137724,0.11861487,1522.5,1522.3,3.78454759]
[1674135137941,1.487e-05,1522.5,1522.4,16.80734235]
[1674135138264,1.76042659,1523.0,1522.4,20.36614235]
[1674135138265,0.68367791,1523.0,1522.4,20.36614235]
[1674135138479,0.68367791,1523.0,1522.5,3.78444759]
[1674135138804,0.68367791,1523.0,1522.6,3.29174759]
[1674135139008,0.68367791,1522.9,1522.5,1.5587]
[1674135139254,0.68367791,1522.9,1522.5,1.0]
[1674135139742,0.68367791,1522.9,1522.4,3.5588]
[1674135139946,0.68367791,1522.9,1522.4,10.06136]
[1674135140171,0.95337561,1522.9,1522.4,10.12736]
[1674135140403,0.95337561,1522.9,1522.4,10.63456]
[1674135140404,0.86223466,1522.9,1522.4,10.63456]
[1674135141220,0.68367791,1523.0,1522.4,10.63456]
[1674135141432,0.76992165,1523.0,1522.4,10.63456]
[1674135142026,0.68367791,1523.0,1522.4,10.63456]
[1674135142153,0.76992345,1523.0,1522.4,10.63456]
[1674135142366,16.77677367,1523.2,1522.5,3.29174759]
[1674135142367,2.60449158,1523.2,1522.5,3.29174759]
[1674135142569,0.84959545,1523.2,1522.6,11.93232759]
[1674135142780,0.84959545,1523.2,1522.7,7.78444759]
[1674135143064,0.16591754,1523.2,1522.8,0.77844476]
[1674135143362,0.16591754,1523.2,1522.9,3.29174759]
[1674135143554,0.16591754,1523.2,1522.9,10.35038759]
[1674135143898,0.16591754,1523.2,1523.0,4.29174759]
[1674135144039,0.16591754,1523.2,1522.9,0.5586]
[1674135144254,0.16591754,1523.2,1522.9,3.4926]
[1674135144673,0.16591754,1523.2,1522.9,0.4926]
[1674135144674,0.26746884,1523.2,1522.9,0.4926]
[1674135145108,0.26746884,1523.2,1522.7,4.0]
[1674135145109,0.95114675,1523.2,1522.8,0.4926]
[1674135145363,0.26746884,1523.2,1522.7,4.5587]
[1674135145550,0.26746884,1523.2,1522.7,3.4927]
[1674135145822,0.26746884,1523.2,1522.6,4.5587]
[1674135146100,0.95114675,1523.2,1522.6,4.4927]
[1674135146319,3.38686227,1523.1,1522.5,0.066]
[1674135146525,3.38686227,1523.1,1522.3,16.56433]
[1674135146526,3.78434759,1523.0,1522.3,0.066]
[1674135146848,3.78434759,1523.0,1522.3,1.0]
[1674135146849,3.29174759,1522.9,1522.3,1.0]
[1674135147023,0.32917476,1522.8,1522.3,1.0]
[1674135147620,0.32917476,1522.8,1522.3,3.0]
[1674135148085,0.32917476,1522.8,1522.2,4.5588]
[1674135148411,0.32917476,1522.8,1522.2,11.06221]
[1674135148735,0.066,1522.9,1522.4,7.56828]
[1674135148921,0.4926,1523.0,1522.4,10.92602759]
[1674135149247,3.78434759,1523.0,1522.4,0.066]
[1674135149463,0.37843476,1522.9,1522.3,6.6347]
[1674135149608,0.37843476,1522.9,1522.4,1.0]
[1674135149825,0.4926,1523.0,1522.4,17.42881759]
[1674135150147,0.58761468,1523.1,1522.4,17.49481759]
[1674135150354,0.09511468,1523.1,1522.5,3.29174759]
[1674135150689,0.82596884,1523.2,1522.6,7.5677]
[1674135150870,3.55921643,1523.2,1522.6,7.6337]
[1674135151525,10.12438643,1523.2,1522.6,1.066]
[1674135151739,1.01243864,1523.1,1522.5,10.41829759]
[1674135152158,1.50493864,1523.1,1522.5,9.92559759]
[1674135152379,1.01243864,1523.1,1522.5,16.49373759]
[1674135152725,3.62521643,1523.2,1522.6,7.56769]
[1674135152932,3.55921643,1523.2,1522.6,7.63369]
[1674135153463,0.26746884,1523.2,1522.6,10.92543759]
[1674135153611,0.16591754,1523.2,1522.7,7.01444759]
[1674135153818,0.16591754,1523.2,1522.8,22.99163759]
[1674135154089,0.16591754,1523.2,1522.9,5.79176376]
[1674135154246,0.16591754,1523.2,1522.9,3.5586]
[1674135154452,0.16591754,1523.2,1522.9,0.4926]
[1674135154869,0.16591754,1523.2,1522.8,3.4926]
[1674135155610,0.16591754,1523.2,1522.9,1.0]
[1674135155827,0.16591754,1523.2,1523.0,3.29174759]
[1674135156144,0.16591754,1523.2,1523.0,16.42324759]
[1674135156360,0.16591754,1523.2,1523.1,1.0]
[1674135156568,0.16591754,1523.2,1523.1,17.42284759]
[1674135156773,0.16591754,1523.2,1523.1,1.5585]
[1674135156965,0.16591754,1523.2,1523.1,18.72775359]
[1674135157199,0.16591754,1523.2,1523.1,18.79375359]
[1674135157435,0.16591754,1523.2,1523.1,10.92329759]
[1674135157635,0.16591754,1523.2,1523.1,20.48884759]
[1674135157927,0.16591754,1523.3,1523.2,14.29522246]
[1674135158169,0.16591754,1523.3,1523.2,18.14547005]
[1674135158494,0.00081112,1523.4,1523.3,1.0]
[1674135158712,0.15881112,1523.6,1523.3,1.0]
[1674135158713,0.15881112,1523.6,1523.4,1.0]
[1674135159021,0.15881112,1523.6,1523.5,25.55063759]
[1674135159236,1.112e-05,1523.6,1523.5,28.61663759]
[1674135159548,1.112e-05,1523.6,1523.5,16.68606]
[1674135159716,1.112e-05,1523.6,1523.5,10.12223]
[1674135160393,1.112e-05,1523.6,1523.5,9.62983]
[1674135160613,1.112e-05,1523.6,1523.5,19.48540759]
[1674135160947,1.112e-05,1523.6,1523.5,19.97780759]
[1674135161956,0.16586542,1523.7,1523.6,14.1268]
[1674135162168,0.16586542,1523.7,1523.6,20.48454759]
[1674135162360,0.16586542,1523.7,1523.6,23.23862535]
[1674135162574,0.16586542,1523.7,1523.6,20.48454759]
[1674135162960,0.16586542,1523.7,1523.6,20.48254759]
[1674135163342,0.16586542,1523.7,1523.6,20.48454759]
[1674135166109,0.16586542,1523.7,1523.6,0.066]
[1674135166321,0.16586542,1523.7,1523.4,1.066]
[1674135166576,0.16586542,1523.7,1523.4,10.56423]
[1674135166777,0.16586542,1523.7,1523.4,10.63023]
[1674135167216,0.16586542,1523.7,1523.4,13.92197759]
[1674135167381,0.16586542,1523.7,1523.6,1.0]
[1674135167594,0.16586542,1523.7,1523.6,7.5634]
[1674135167802,0.16586542,1523.7,1523.6,7.6294]
[1674135168275,0.16586542,1523.7,1523.6,0.066]
[1674135168591,0.16586542,1523.7,1523.5,0.066]
[1674135168749,0.16586542,1523.7,1523.4,3.0]
[1674135169162,0.16586542,1523.7,1523.4,4.0]
[1674135169501,0.16586542,1523.7,1523.4,3.0]
[1674135170448,0.85319047,1523.7,1523.3,0.066]
[1674135170793,17.76326806,1523.7,1523.2,0.066]
[1674135170955,17.82926806,1523.7,1523.0,13.19748]
[1674135171166,8.34000681,1523.6,1523.1,1.0]
[1674135171369,8.40600681,1523.6,1523.1,1.0]
[1674135171621,14.96968681,1523.6,1523.0,7.12434]
[1674135171812,0.84060068,1523.5,1523.0,7.12434]
[1674135172007,7.40456068,1523.5,1523.0,6.63174]
[1674135172209,7.47056068,1523.5,1523.0,6.63174]
[1674135172425,0.74705607,1523.4,1523.0,0.066]
[1674135172671,0.74705607,1523.4,1522.9,0.5586]
[1674135172839,17.65972366,1523.4,1522.9,0.4926]
[1674135173049,17.72572366,1523.4,1522.9,0.4926]
[1674135173259,5.06431996,1523.3,1522.8,0.066]
[1674135173483,13.13047,1523.2,1522.7,0.0562306]
[1674135173718,1.313047,1523.1,1522.7,0.0562306]
[1674135173940,0.4926,1523.0,1522.7,0.0562306]
[1674135174111,7.05887,1523.0,1522.7,0.0562306]
[1674135174329,3.29174759,1522.9,1522.7,0.0562306]
[1674135174557,3.29174759,1522.9,1522.7,3.06e-05]